{"text_format":"3","workbook":"xlsx","n_sheets":2,"sheets":["SÅDAN BRUGER DU PROJEKTMAPPEN","KARAKTERBOG"],"not_rendered":{"defined_names":7},"read":"whole","date_system":"1900"}

{"sheet":"SÅDAN BRUGER DU PROJEKTMAPPEN","index":0,"n_rows":10,"n_cols":2,"rows_kept":10}
[null,"VEJLEDNING"]
[null,"Brug regnearket KARAKTERBOG til at beregne karakterer, hvor hver opgave svarer til et bestemt antal point. "]
[null,"Vejledning: Sørg for at lave sikkerhedskopier af dine karakterer."]
[null,"1. Indtast skolens navn, klasseoplysninger, navne på studerende og elev-id'er (valgfrit).   "]
[null,"2. Juster tabellen Karakter og karaktergennemsnit, så den matcher det karaktersystem, du bruger."]
[null,"3. Udfyld opgave- eller testnavne (f.eks. \"Test 1\") fra og med celle H8 samt de point, som hver opgave er værd. "]
[null,"4. Udfyld karaktererne for hver studerende på hver opgave eller test. Kolonnerne \"Gennemsnit\", \"Point\", \"Bogstavskarakter\" og \"Karaktergennemsnit\" beregnes automatisk, men du kan overskrive dem, hvis du ønsker. For at tildele bonuspoint, skal du blot give flere point til en opgave end det samlede mulige antal point, der er angivet for den opgave."]
[null,"Brug kommandoen \"Udskriftsområde\" på menuen Sidelayout, hvis du vil ændre, hvad der udskrives."]
[null,"Point for karakterer er baseret på en standard procentskala i henhold til det samlede antal point, der er blevet tildelt i række 8 og 9. Tilpas hver opgave eller test, så de har det ønskede antal point, og juster derefter, hvilken procentdel der svarer til hver karakter. Overskriv Point-cellerne for manuelt at foretage ændringer."]
[null,"Indtast hver opgave eller test og pointene, de er værd i cellerne H8 til X9."]

{"sheet":"KARAKTERBOG","index":1,"n_rows":24,"n_cols":24,"rows_kept":24,"merged":[[1,1,2,6],[3,1,3,6],[4,1,6,6],[7,4,7,6],[8,4,8,6],[10,4,10,6],[11,4,11,6],[19,1,19,6],[20,1,20,2],[20,3,20,4],[21,1,21,2],[21,3,21,4],[22,1,22,2],[22,3,22,4],[23,1,23,2],[23,3,23,4]]}
[null,"NAVNET PÅ DIN SKOLE"]
[null,"Lærers navn"]
[{"$nulls":7},"Resultat",{"$f":"I4*SamledePoint","v":118},120,126,134,140,{"v":145.6666666666666,"d":"146"},154,160,166,174,180,186,194]
[null,"Klasse/projekt",{"$nulls":5},"%",{"v":0.59,"d":"59%"},{"v":0.6,"d":"60%"},{"v":0.63,"d":"63%"},{"v":0.67,"d":"67%"},{"v":0.7,"d":"70%"},{"v":0.728333333333333,"d":"73%"},{"v":0.77,"d":"77%"},{"v":0.8,"d":"80%"},{"v":0.83,"d":"83%"},{"v":0.87,"d":"87%"},{"v":0.9,"d":"90%"},{"v":0.93,"d":"93%"},{"v":0.97,"d":"97%"}]
[null,"År/semester/kvartal",{"$nulls":5},"Bogstavkarakter","F","D-","D","D+","C-","C","C+","B-","B","B+","A-","A","A+"]
[{"$nulls":7},"Karaktergennemsnit",0,0.67,1,1.33,1.67,2,2.33,2.67,3,3.33,3.67,4,4]
[]
[{"$nulls":4},"Opgave- eller testnavn",null,null,"Lektier1","Lektier2","1. kvartal"]
[{"$nulls":4},"Samlede tilgængelige point",null,null,50,50,100]
[]
[{"$nulls":4},"Samlet antal opgaver og prøver:",null,null,{"$f":"COUNTA(H8:X8)","v":3}]
[{"$nulls":4},"Samlede tilgængelige point:",null,null,{"$f":"SUM(H9:X9)","v":200}]
[]
[null,"Navn på elev","Elevens id-nummer","Gennemsnit","Resultat","Bogstavkarakter","Karaktergennemsnit","Kolonne6","Kolonne7","Kolonne8","Kolonne9","Kolonne10","Kolonne11","Kolonne12","Kolonne13","Kolonne14","Kolonne15","Kolonne16","Kolonne17","Kolonne18","Kolonne19","Kolonne20","Kolonne21","Kolonne22"]
[null,"Elevnummer 1",null,{"$f":"IFERROR(IF(COUNT(Karakterer[[#This Row],[Kolonne6]:[Kolonne22]])=0,\"\",SUM(Karakterer[[#This Row],[Kolonne6]:[Kolonne22]])/SamledePoint),\"\")","v":{"v":0.91,"d":"91.0%"}},{"$f":"IF(COUNT(Karakterer[[#This Row],[Kolonne6]:[Kolonne22]])=0,\"\",SUM(Karakterer[[#This Row],[Kolonne6]:[Kolonne22]]))","v":182},{"$f":"IFERROR(IF(Karakterer[[#This Row],[Gennemsnit]]<>\"\",HLOOKUP(Karakterer[[#This Row],[Gennemsnit]]*SamledePoint,KARAKTERTABEL,3),\"\"),0)","v":"A-"},{"$f":"IFERROR(IF(Karakterer[[#This Row],[Gennemsnit]]<>\"\",HLOOKUP(Karakterer[[#This Row],[Gennemsnit]]*SamledePoint,KARAKTERTABEL,4),\"\"),0)","v":3.67},45,45,92]
[null,"Elevnummer 2",null,{"$f":"IFERROR(IF(COUNT(Karakterer[[#This Row],[Kolonne6]:[Kolonne22]])=0,\"\",SUM(Karakterer[[#This Row],[Kolonne6]:[Kolonne22]])/SamledePoint),\"\")","v":{"v":1,"d":"100.0%"}},{"$f":"IF(COUNT(Karakterer[[#This Row],[Kolonne6]:[Kolonne22]])=0,\"\",SUM(Karakterer[[#This Row],[Kolonne6]:[Kolonne22]]))","v":200},{"$f":"IFERROR(IF(Karakterer[[#This Row],[Gennemsnit]]<>\"\",HLOOKUP(Karakterer[[#This Row],[Gennemsnit]]*SamledePoint,KARAKTERTABEL,3),\"\"),0)","v":"A+"},{"$f":"IFERROR(IF(Karakterer[[#This Row],[Gennemsnit]]<>\"\",HLOOKUP(Karakterer[[#This Row],[Gennemsnit]]*SamledePoint,KARAKTERTABEL,4),\"\"),0)","v":{"v":4,"d":"4.00"}},50,50,100]
[{"$nulls":3},{"$f":"IFERROR(IF(COUNT(Karakterer[[#This Row],[Kolonne6]:[Kolonne22]])=0,\"\",SUM(Karakterer[[#This Row],[Kolonne6]:[Kolonne22]])/SamledePoint),\"\")","v":""},{"$f":"IF(COUNT(Karakterer[[#This Row],[Kolonne6]:[Kolonne22]])=0,\"\",SUM(Karakterer[[#This Row],[Kolonne6]:[Kolonne22]]))","v":""},{"$f":"IFERROR(IF(Karakterer[[#This Row],[Gennemsnit]]<>\"\",HLOOKUP(Karakterer[[#This Row],[Gennemsnit]]*SamledePoint,KARAKTERTABEL,3),\"\"),0)","v":""},{"$f":"IFERROR(IF(Karakterer[[#This Row],[Gennemsnit]]<>\"\",HLOOKUP(Karakterer[[#This Row],[Gennemsnit]]*SamledePoint,KARAKTERTABEL,4),\"\"),0)","v":""}]
[{"$nulls":3},{"$f":"IFERROR(IF(COUNT(Karakterer[[#This Row],[Kolonne6]:[Kolonne22]])=0,\"\",SUM(Karakterer[[#This Row],[Kolonne6]:[Kolonne22]])/SamledePoint),\"\")","v":""},{"$f":"IF(COUNT(Karakterer[[#This Row],[Kolonne6]:[Kolonne22]])=0,\"\",SUM(Karakterer[[#This Row],[Kolonne6]:[Kolonne22]]))","v":""},{"$f":"IFERROR(IF(Karakterer[[#This Row],[Gennemsnit]]<>\"\",HLOOKUP(Karakterer[[#This Row],[Gennemsnit]]*SamledePoint,KARAKTERTABEL,3),\"\"),0)","v":""},{"$f":"IFERROR(IF(Karakterer[[#This Row],[Gennemsnit]]<>\"\",HLOOKUP(Karakterer[[#This Row],[Gennemsnit]]*SamledePoint,KARAKTERTABEL,4),\"\"),0)","v":""}]
[{"$nulls":3},{"$f":"IFERROR(IF(COUNT(Karakterer[[#This Row],[Kolonne6]:[Kolonne22]])=0,\"\",SUM(Karakterer[[#This Row],[Kolonne6]:[Kolonne22]])/SamledePoint),\"\")","v":""},{"$f":"IF(COUNT(Karakterer[[#This Row],[Kolonne6]:[Kolonne22]])=0,\"\",SUM(Karakterer[[#This Row],[Kolonne6]:[Kolonne22]]))","v":""},{"$f":"IFERROR(IF(Karakterer[[#This Row],[Gennemsnit]]<>\"\",HLOOKUP(Karakterer[[#This Row],[Gennemsnit]]*SamledePoint,KARAKTERTABEL,3),\"\"),0)","v":""},{"$f":"IFERROR(IF(Karakterer[[#This Row],[Gennemsnit]]<>\"\",HLOOKUP(Karakterer[[#This Row],[Gennemsnit]]*SamledePoint,KARAKTERTABEL,4),\"\"),0)","v":""}]
[]
[null,"Klasseoversigt",null,"Gennemsnit",null,"Bogstavkarakter","Karaktergennemsnit","","","","","","","","","","",""]
[null," Gennemsnit",null,{"$f":"IFERROR(AVERAGE(Karakterer[[#All],[Gennemsnit]]),0)","v":{"v":0.9550000000000001,"d":"95.5%"}},null,{"$f":"IFERROR(HLOOKUP(D22*SamledePoint,KARAKTERTABEL,3),\"\")","v":"A"},{"$f":"IFERROR(AVERAGE(Karakterer[[#All],[Karaktergennemsnit]]),0)","v":{"v":3.835,"d":"3.84"}},"","","","","","","","","","","","","","","","",""]
[null," Højeste resultat",null,{"$f":"IFERROR(MAX(Karakterer[[#All],[Gennemsnit]]),0)","v":{"v":1,"d":"100.0%"}},null,{"$f":"IFERROR(HLOOKUP(D23*SamledePoint,KARAKTERTABEL,3),\"\")","v":"A+"},{"$f":"IFERROR(MAX(Karakterer[[#All],[Karaktergennemsnit]]),0)","v":{"v":4,"d":"4.00"}},"","","","","","","","","","","","","","","","",""]
[null," Laveste resultat",null,{"$f":"IFERROR(MIN(Karakterer[[#All],[Gennemsnit]]),0)","v":{"v":0.91,"d":"91.0%"}},null,{"$f":"IFERROR(HLOOKUP(D24*SamledePoint,KARAKTERTABEL,3),\"\")","v":"A-"},{"$f":"IFERROR(MIN(Karakterer[[#All],[Karaktergennemsnit]]),0)","v":3.67},"","","","","","","","","","","","","","","","",""]